fUSD/lending_fUSD_20250616
["ID","MTS","AMOUNT","RATE_DAILY","PERIOD"]
[366071440,1750049443838,-490.0,0.00016438,2]
[366071441,1750049443848,-2535.1,0.00016438,2]
[366071442,1750049443859,-490.0,0.00016438,2]
[366071443,1750049443869,-490.0,0.00016438,2]
[366071444,1750049443879,-852.19,0.00016438,2]
[366071445,1750049443889,-490.0,0.00016438,2]
[366071446,1750049443900,-500.73,0.00016438,2]
[366071447,1750049443911,-1315.08,0.00016438,2]
[366071448,1750049443928,-794.31,0.00016438,2]
[366071449,1750049443940,-490.0,0.00016438,2]
[366071450,1750049443952,-737.68,0.00016438,2]
[366071451,1750049443963,-1358.83,0.00016438,2]
[366071452,1750049443974,-565.36,0.00016438,2]
[366071453,1750049443985,-993.3,0.00016438,2]
[366071454,1750049443996,-710.59,0.00016438,2]
[366071455,1750049444007,-490.0,0.00016438,2]
[366071456,1750049444018,-1455.94,0.00016438,2]
[366071457,1750049444029,-1330.59,0.00016438,2]
[366071458,1750049444040,-490.0,0.00016438,2]
[366071459,1750049444071,-490.0,0.00016438,2]
[366071460,1750049444082,-956.25,0.00016438,2]
[366071461,1750049444093,-758.97,0.00016438,2]
[366071462,1750049444106,-680.39,0.00016438,2]
[366071463,1750049444120,-490.0,0.00016438,2]
[366071464,1750049444131,-1718.95,0.00016438,2]
[366071465,1750049444141,-490.0,0.00016438,2]
[366071466,1750049444152,-490.0,0.00016438,2]
[366071467,1750049444162,-490.0,0.00016438,2]
[366071468,1750049444172,-675.22,0.00016438,2]
[366071469,1750049444183,-490.0,0.00016438,2]
[366071470,1750049444196,-504.84124284,0.00016438,2]
[366071471,1750049444213,-699.07,0.00016438,2]
[366071472,1750049444230,-1190.31,0.00016438,2]
[366071473,1750049444247,-589.95,0.00016438,2]
[366071474,1750049444262,-490.0,0.00016438,2]
[366071475,1750049444275,-490.0,0.00016438,2]
[366071476,1750049444288,-490.0,0.00016438,2]
[366071477,1750049444301,-649.21,0.00016438,2]
[366071478,1750049444316,-519.12,0.00016438,2]
[366071479,1750049444330,-2052.42,0.00016438,2]
[366071480,1750049444344,-1270.66,0.00016438,2]
[366071481,1750049444359,-490.0,0.00016438,2]
[366071482,1750049444374,-723.25,0.00016438,2]
[366071483,1750049444389,-493.27370035,0.00016438,2]
[366071484,1750049444404,-820.96,0.00016438,2]
[366071485,1750049444418,-490.0,0.00016438,2]
[366071486,1750049444431,-490.0,0.00016438,2]
[366071487,1750049444442,-490.0,0.00016438,2]
[366071488,1750049444456,-1701.57,0.00016438,2]
[366071489,1750049444472,-2317.57,0.00016438,2]
[366071490,1750049444488,-490.0,0.00016438,2]
[366071491,1750049444503,-526.0,0.00016438,2]
[366071492,1750049444518,-490.0,0.00016438,2]
[366071493,1750049444532,-490.0,0.00016438,2]
[366071494,1750049444546,-490.0,0.00016438,2]
[366071495,1750049444561,-524.45,0.00016438,2]
[366071496,1750049444576,-490.0,0.00016438,2]
[366071497,1750049444590,-490.0,0.00016438,2]
[366071498,1750049444605,-490.0,0.00016438,2]
[366071499,1750049444617,-490.44183243,0.00016438,2]
[366071500,1750049444633,-490.0,0.00016438,2]
[366071501,1750049444647,-759.14,0.00016438,2]
[366071502,1750049444664,-1912.64,0.00016438,2]
[366071503,1750049444677,-490.0,0.00016438,2]
[366071504,1750049444691,-490.0,0.00016438,2]
[366071505,1750049444706,-490.0,0.00016438,2]
[366071506,1750049444719,-490.0,0.00016438,2]
[366071507,1750049444733,-2489.45,0.00016438,2]
[366071508,1750049444747,-553.22,0.00016438,2]
[366071509,1750049444763,-1246.39,0.00016438,2]
[366071510,1750049444781,-546.51,0.00016438,2]
[366071511,1750049444797,-490.0,0.00016438,2]
[366071512,1750049444811,-614.25312638,0.00016438,2]
[366071513,1750049444824,-473.72,0.00016438,2]
[366071514,1750049444837,-1808.31,0.00016438,2]
[366071515,1750049444849,-490.0,0.00016438,2]
[366071516,1750049444861,-1306.5,0.00016438,2]
[366071517,1750049444874,-609.82,0.00016438,2]
[366071518,1750049444887,-490.0,0.00016438,2]
[366071519,1750049444903,-641.76,0.00016438,2]
[366071520,1750049444919,-1210.94,0.00016438,2]
[366071521,1750049444932,-497.30409909,0.00016438,2]
[366071522,1750049444943,-694.54,0.00016438,2]
[366071523,1750049444955,-770.17,0.00016438,2]
[366071524,1750049444967,-490.0,0.00016438,2]
[366071525,1750049444980,-2906.26,0.00016438,2]
[366071526,1750049444994,-1297.53,0.00016438,2]
[366071527,1750049445013,-1492.3,0.00016438,2]
[366071528,1750049445029,-490.0,0.00016438,2]
[366071529,1750049445040,-490.0,0.00016438,2]
[366071530,1750049445052,-152.960072,0.00016438,2]
[366071531,1750049445064,-1471.5,0.00016438,2]
[366071532,1750049445076,-677.86,0.00016438,2]
[366071533,1750049445088,-614.87,0.00016438,2]
[366071534,1750049445101,-594.61,0.00016438,2]
[366071535,1750049445113,-491.07193339,0.00016438,2]
[366071536,1750049445126,-490.0,0.00016438,2]
[366071537,1750049445138,-582.08,0.00016438,2]
[366071538,1750049445151,-490.0,0.00016438,2]
[366071539,1750049445163,-1101.25,0.00016438,2]
[366071540,1750049445175,-490.0,0.00016438,2]
[366071541,1750049445188,-490.0,0.00016438,2]
[366071542,1750049445201,-490.0,0.00016438,2]
[366071543,1750049445215,-2325.2,0.00016438,2]
[366071544,1750049445229,-1436.33,0.00016438,2]
[366071545,1750049445243,-490.0,0.00016438,2]
[366071546,1750049445257,-490.0,0.00016438,2]
[366071547,1750049445270,-492.34736973,0.00016438,2]
[366071548,1750049445283,-601.37,0.00016438,2]
[366071549,1750049445297,-1493.52,0.00016438,2]
[366071550,1750049445311,-490.0,0.00016438,2]
[366071551,1750049445325,-738.47,0.00016438,2]
[366071552,1750049445360,-582.28,0.00016438,2]
[366071553,1750049445374,-1766.25,0.00016438,2]
[366071554,1750049445388,-490.0,0.00016438,2]
[366071555,1750049445401,-514.7,0.00016438,2]
[366071556,1750049445413,-490.0,0.00016438,2]
[366071557,1750049445426,-588.39,0.00016438,2]
[366071558,1750049445439,-490.0,0.00016438,2]
[366071559,1750049445451,-439.53066861,0.00016438,2]
[366071560,1750049445464,-886.73,0.00016438,2]
[366071561,1750049445477,-1542.34,0.00016438,2]
[366071562,1750049445492,-648.6,0.00016438,2]
[366071563,1750049445505,-490.0,0.00016438,2]
[366071564,1750049445518,-2063.82,0.00016438,2]
[366071565,1750049445531,-306.69229381,0.00016438,2]
[366071566,1750049445544,-490.0,0.00016438,2]
[366071567,1750049445556,-490.0,0.00016438,2]
[366071568,1750049445569,-523.35584212,0.00016438,2]
[366071569,1750049445583,-1167.87,0.00016438,2]
[366071570,1750049445596,-1595.75,0.00016438,2]
[366071571,1750049445608,-666.73,0.00016438,2]
[366071572,1750049445620,-490.0,0.00016438,2]
[366071573,1750049445632,-1180.8,0.00016438,2]
[366071574,1750049445645,-678.97,0.00016438,2]
[366071575,1750049445657,-490.0,0.00016438,2]
[366071576,1750049445669,-271.99095853,0.00016438,2]
[366071577,1750049445681,-490.0,0.00016438,2]
[366071578,1750049445693,-151.0,0.00016438,2]
[366071579,1750049445705,-490.0,0.00016438,2]
[366071580,1750049445718,-493.78762477,0.00016438,2]
[366071581,1750049445730,-501.94,0.00016438,2]
[366071582,1750049445742,-490.0,0.00016438,2]
[366071583,1750049445755,-796.5,0.00016438,2]
[366071584,1750049445767,-2040.69,0.00016438,2]
[366071585,1750049445779,-493.98889462,0.00016438,2]
[366071586,1750049445792,-490.0,0.00016438,2]
[366071587,1750049445804,-535.55,0.00016438,2]
[366071588,1750049445816,-568.12,0.00016438,2]
[366071589,1750049445827,-490.0,0.00016438,2]
[366071590,1750049445839,-490.0,0.00016438,2]
[366071591,1750049445851,-495.71,0.00016438,2]
[366071592,1750049445863,-350.0,0.00016438,2]
[366071593,1750049445874,-490.0,0.00016438,2]
[366071594,1750049445887,-173.68808729,0.00016438,2]
[366071595,1750049445899,-490.0,0.00016438,2]
[366071596,1750049445911,-494.84953101,0.00016438,2]
[366071597,1750049445923,-777.23,0.00016438,2]
[366071598,1750049445935,-490.0,0.00016438,2]
[366071599,1750049445947,-549.89,0.00016438,2]
[366071600,1750049445960,-490.0,0.00016438,2]
[366071601,1750049445972,-490.0,0.00016438,2]
[366071602,1750049445983,-490.0,0.00016438,2]
[366071603,1750049445995,-297.08,0.00016438,2]
[366071604,1750049446007,-624.14,0.00016438,2]
[366071605,1750049446018,-490.0,0.00016438,2]
[366071606,1750049446032,-1057.14,0.00016438,2]
[366071607,1750049446044,-521.62,0.00016438,2]
[366071608,1750049446057,-473.14624847,0.00016438,2]
[366071609,1750049446068,-717.65,0.00016438,2]
[366071610,1750049446080,-776.28,0.00016438,2]
[366071611,1750049446092,-490.0,0.00016438,2]
[366071612,1750049446104,-490.0,0.00016438,2]
[366071613,1750049446116,-1655.09,0.00016438,2]
[366071614,1750049446127,-491.75287119,0.00016438,2]
[366071615,1750049446139,-1373.56,0.00016438,2]
[366071616,1750049446151,-577.87,0.00016438,2]
[366071617,1750049446163,-490.0,0.00016438,2]
[366071618,1750049446175,-2000.36,0.00016438,2]
[366071619,1750049446187,-490.0,0.00016438,2]
[366071620,1750049446199,-490.0,0.00016438,2]
[366071621,1750049446211,-1527.66,0.00016438,2]
[366071622,1750049446223,-150.0,0.00016438,2]
[366071623,1750049446236,-490.0,0.00016438,2]
[366071624,1750049446248,-504.83,0.00016438,2]
[366071625,1750049446259,-490.0,0.00016438,2]
[366071626,1750049446271,-501.83223207,0.00016438,2]
[366071627,1750049446283,-490.0,0.00016438,2]
[366071628,1750049446294,-923.58,0.00016438,2]
[366071629,1750049446306,-300.0,0.00016438,2]
[366071630,1750049446318,-490.0,0.00016438,2]
[366071631,1750049446328,-150.0,0.00016438,2]
[366071632,1750049446340,-490.0,0.00016438,2]
[366071633,1750049446352,-2350.31,0.00016438,2]
[366071634,1750049446364,-150.0,0.00016438,2]
[366071635,1750049446376,-490.0,0.00016438,2]
[366071636,1750049446387,-150.96623907,0.00016438,2]
[366071637,1750049446399,-802.64,0.00016438,2]
[366071638,1750049446411,-495.10787806,0.00016438,2]
[366071639,1750049446423,-490.0,0.00016438,2]
[366071640,1750049446434,-490.0,0.00016438,2]
[366071641,1750049446446,-572.55,0.00016438,2]
[366071642,1750049446459,-2084.07,0.00016438,2]
[366071643,1750049446471,-491.2506183,0.00016438,2]
[366071644,1750049446482,-490.0,0.00016438,2]
[366071645,1750049446496,-490.0,0.00016438,2]
[366071646,1750049446508,-615.77829101,0.00016438,2]
[366071647,1750049446520,-490.0,0.00016438,2]
[366071648,1750049446531,-1212.31,0.00016438,2]
[366071649,1750049446542,-151.0,0.00016438,2]
[366071650,1750049446553,-540.49,0.00016438,2]
[366071651,1750049446565,-490.0,0.00016438,2]
[366071652,1750049446576,-1843.73,0.00016438,2]
[366071653,1750049446588,-1716.44,0.00016438,2]
[366071654,1750049446601,-499.32236933,0.00016438,2]
[366071656,1750049446615,-490.0,0.00016438,2]
[366071658,1750049446626,-495.17346269,0.00016438,2]
[366071659,1750049446637,-2727.13,0.00016438,2]
[366071660,1750049446648,-151.0,0.00016438,2]
[366071661,1750049446659,-9830.46,0.00016438,2]
[366071662,1750049446670,-1578.35,0.00016438,2]
[366071663,1750049446683,-19002.41,0.00016438,2]
[366071664,1750049446693,-490.0,0.00016438,2]
[366071665,1750049446704,-490.0,0.00016438,2]
[366071666,1750049446715,-702.1,0.00016438,2]
[366071667,1750049446726,-957.42,0.00016438,2]
[366071668,1750049446737,-2136.64,0.00016438,2]
[366071669,1750049446748,-651.74,0.00016438,2]
[366071670,1750049446760,-1019.52,0.00016438,2]
[366071671,1750049446771,-496.89848341,0.00016438,2]
[366071672,1750049446783,-494.88662358,0.00016438,2]
[366071673,1750049446795,-676.15,0.00016438,2]
[366071674,1750049446806,-490.0,0.00016438,2]
[366071675,1750049446817,-490.0,0.00016438,2]
[366071676,1750049446828,-636.02,0.00016438,2]
[366071677,1750049446839,-2069.4,0.00016438,2]
[366071678,1750049446851,-490.0,0.00016438,2]
[366071679,1750049446862,-2538.18,0.00016438,2]
[366071680,1750049446873,-1386.07,0.00016438,2]
[366071681,1750049446884,-4193.57,0.00016438,2]
[366071682,1750049446894,-490.0,0.00016438,2]
[366071683,1750049446905,-790.52,0.00016438,2]
[366071684,1750049446916,-631.5,0.00016438,2]
[366071685,1750049446927,-1252.94,0.00016438,2]
[366071686,1750049446939,-151.583738,0.00016438,2]
[366071687,1750049446950,-151.0,0.00016438,2]
[366071688,1750049446964,-490.0,0.00016438,2]
[366071689,1750049446975,-495.39857586,0.00016438,2]
[366071690,1750049446986,-490.0,0.00016438,2]
[366071691,1750049446998,-793.56,0.00016438,2]
[366071692,1750049447009,-151.0,0.00016438,2]
[366071693,1750049447020,-490.0,0.00016438,2]
[366071694,1750049447031,-490.95324714,0.00016438,2]
[366071695,1750049447042,-481.94041308,0.00016438,2]
[366071696,1750049447053,-1689.59,0.00016438,2]
[366071697,1750049447064,-490.0,0.00016438,2]
[366071698,1750049447076,-1095.05,0.00016438,2]
[366071699,1750049447088,-2024.87,0.00016438,2]
[366071700,1750049447099,-500.69116406,0.00016438,2]
[366071701,1750049447111,-2747.94,0.00016438,2]
[366071702,1750049447123,-2024.74,0.00016438,2]
[366071703,1750049447134,-490.0,0.00016438,2]
[366071704,1750049447145,-490.0,0.00016438,2]
[366071705,1750049447156,-699.62,0.00016438,2]
[366071706,1750049447167,-1230.02,0.00016438,2]
[366071707,1750049447178,-490.0,0.00016438,2]
[366071708,1750049447189,-490.0,0.00016438,2]
[366071709,1750049447201,-490.0,0.00016438,2]
[366071710,1750049447213,-493.65584201,0.00016438,2]
[366071711,1750049447224,-2370.49,0.00016438,2]
[366071712,1750049447235,-490.0,0.00016438,2]
[366071713,1750049447247,-490.0,0.00016438,2]
[366071714,1750049447259,-1271.2,0.00016438,2]
[366071715,1750049447270,-1374.71,0.00016438,2]
[366071716,1750049447281,-1075.96,0.00016438,2]
[366071717,1750049447293,-38.01655638,0.00016438,2]
[366071718,1750049448944,-451.98344362,0.00016438,2]
[366071719,1750049448954,-568.16,0.00016438,2]
[366071720,1750049448965,-490.0,0.00016438,2]
[366071721,1750049448976,-490.0,0.00016438,2]
[366071722,1750049448986,-490.81,0.00016438,2]
[366071723,1750049448996,-3803.36,0.00016438,2]
[366071724,1750049449006,-490.0,0.00016438,2]
[366071725,1750049449016,-490.0,0.00016438,2]
[366071726,1750049449026,-490.0,0.00016438,2]
[366071727,1750049449036,-1718.76,0.00016438,2]
[366071728,1750049449046,-499.90895304,0.00016438,2]
[366071729,1750049449056,-151.0,0.00016438,2]
[366071730,1750049449067,-1794.88,0.00016438,2]
[366071731,1750049449077,-406.05023733,0.00016438,2]
[366071732,1750049449834,-876.64342444,0.00016438,2]
[366071733,1750049449846,-3075.87633823,0.00016438,2]
[366071734,1750049449856,-961.31303802,0.00016438,2]
[366071735,1750049449868,-813.20696198,0.00016438,2]
[366071736,1750049449878,-207.72223899,0.00016438,2]
[366071737,1750049449910,-2538.45776101,0.00016438,2]
[366071738,1750049449921,-490.0,0.00016438,2]
[366071739,1750049449931,-1659.77,0.00016438,2]
[366071740,1750049449941,-1164.85,0.00016438,2]
[366071741,1750049449951,-557.27,0.00016438,2]
[366071742,1750049449960,-1195.73820476,0.00016438,2]
[366071743,1750049449973,-1490.66179524,0.00016438,2]
[366071744,1750049449982,-490.0,0.00016438,2]
[366071745,1750049449992,-490.0,0.00016438,2]
[366071746,1750049450001,-490.0,0.00016438,2]
[366071747,1750049450011,-452.99665179,0.00016438,2]
[366071748,1750049450024,-2097.02334821,0.00016438,2]
[366071749,1750049450033,-129.34679194,0.00016438,2]
[366071750,1750049450054,-21.65320806,0.00016438,2]
[366071751,1750049450064,-1045.15757638,0.00016438,2]
[366071752,1750049450093,-527.47012789,0.00016438,2]
[366071753,1750049451175,-32.99229573,0.00016438,2]
[366071754,1750049451184,-661.53,0.00016438,2]
[366071755,1750049451194,-490.0,0.00016438,2]
[366071756,1750049451203,-1364.46,0.00016438,2]
[366071757,1750049451213,-5080.82,0.00016438,2]
[366071758,1750049451223,-825.19770427,0.00016438,2]
[366071759,1750049451239,-97.24229573,0.00016438,2]
[366071760,1750049451249,-495.71595598,0.00016438,2]
[366071761,1750049451259,-490.0,0.00016438,2]
[366071762,1750049451268,-490.0,0.00016438,2]
[366071763,1750049451278,-490.0,0.00016438,2]
[366071764,1750049451288,-490.0,0.00016438,2]
[366071765,1750049451297,-500.0,0.00016438,2]
[366071766,1750049451308,-1786.77,0.00016438,2]
[366071767,1750049451318,-500.0,0.00016438,2]
[366071768,1750049451329,-500.0,0.00016438,2]
[366071769,1750049451339,-2645.29,0.00016438,2]
[366071770,1750049451348,-500.0,0.00016438,2]
[366071771,1750049451358,-500.0,0.00016438,2]
[366071772,1750049451367,-490.0,0.00016438,2]
[366071773,1750049451377,-267.90523209,0.00016438,2]
[366071774,1750049451388,-662.88,0.00016438,2]
[366071775,1750049451397,-490.0,0.00016438,2]
[366071776,1750049451407,-189.37124,0.00016438,2]
[366071777,1750049451417,-388.59,0.00016438,2]
[366071778,1750049451427,-1035.5,0.00016438,2]
[366071779,1750049451437,-356.66568584,0.00016438,2]
[366071780,1750049451453,-136.64680467,0.00016438,2]
[366071781,1750049451463,-490.0,0.00016438,2]
[366071782,1750049451473,-152.98781326,0.00016438,2]
[366071783,1750049451487,-340.37747265,0.00016438,2]
[366071784,1750049451498,-294.02252736,0.00016438,2]
[366071785,1750049451510,-204.69580063,0.00016438,2]
[366071786,1750049451520,-189.37124,0.00016438,2]
[366071787,1750049451530,-1487.45630342,0.00016438,2]
[366071788,1750049451542,-175.80369658,0.00016438,2]
[366071789,1750049451551,-366.23861944,0.00016438,2]
[366071790,1750049451561,-342.40144143,0.00016438,2]
[366071791,1750049451666,-151.84914816,0.00016438,2]
[366071792,1750049451675,-2422.72,0.00016438,2]
[366071793,1750049451684,-490.0,0.00016438,2]
[366071794,1750049451693,-4246.85,0.00016438,2]
[366071795,1750049451702,-1646.88,0.00016438,2]
[366071796,1750049451712,-490.0,0.00016438,2]
[366071797,1750049451722,-492.07689724,0.00016438,2]
[366071798,1750049451731,-7684.87,0.00016438,2]
[366071799,1750049451740,-490.0,0.00016438,2]
[366071800,1750049451749,-490.0,0.00016438,2]
[366071801,1750049451758,-490.0,0.00016438,2]
[366071802,1750049451767,-494.81690619,0.00016438,2]
[366071803,1750049451777,-496.31897407,0.00016438,2]
[366071804,1750049451786,-536.2,0.00016438,2]
[366071805,1750049451796,-493.00339608,0.00016438,2]
[366071806,1750049451805,-4712.47,0.00016438,2]
[366071807,1750049451814,-661.35,0.00016438,2]
[366071808,1750049451824,-2644.08,0.00016438,2]
[366071809,1750049451834,-1286.5,0.00016438,2]
[366071810,1750049451843,-5388.58,0.00016438,2]
[366071811,1750049451853,-1665.65,0.00016438,2]
[366071812,1750049451862,-1415.84,0.00016438,2]
[366071813,1750049451871,-490.0,0.00016438,2]
[366071814,1750049451880,-337.984874,0.00016438,2]
[366071815,1750049451889,-813.47,0.00016438,2]
[366071816,1750049451898,-490.0,0.00016438,2]
[366071817,1750049451908,-493.35675332,0.00016438,2]
[366071818,1750049451918,-490.0,0.00016438,2]
[366071819,1750049451927,-337.984874,0.00016438,2]
[366071820,1750049451937,-780.51,0.00016438,2]
[366071821,1750049451946,-490.0,0.00016438,2]
[366071822,1750049451956,-490.0,0.00016438,2]
[366071823,1750049451966,-491.76079103,0.00016438,2]
[366071824,1750049451975,-1308.03,0.00016438,2]
[366071825,1750049451985,-493.52014018,0.00016438,2]
[366071826,1750049451995,-632.2,0.00016438,2]
[366071827,1750049452004,-490.0,0.00016438,2]
[366071828,1750049452013,-491.94,0.00016438,2]
[366071829,1750049452023,-260.88022851,0.00016438,2]
[366071830,1750049452032,-534.17,0.00016438,2]
[366071831,1750049452042,-490.0,0.00016438,2]
[366071832,1750049452051,-534.17,0.00016438,2]
[366071833,1750049452061,-534.17,0.00016438,2]
[366071834,1750049452071,-534.17,0.00016438,2]
[366071835,1750049452080,-490.0,0.00016438,2]
[366071836,1750049452090,-623.01,0.00016438,2]
[366071837,1750049452099,-1797.2,0.00016438,2]
[366071838,1750049452109,-496.53852849,0.00016438,2]
[366071839,1750049452119,-233.324831,0.00016438,2]
[366071840,1750049452128,-490.0,0.00016438,2]
[366071841,1750049452138,-626.75,0.00016438,2]
[366071842,1750049452148,-641.04,0.00016438,2]
[366071843,1750049452157,-152.156297,0.00016438,2]
[366071844,1750049452167,-491.31089225,0.00016438,2]
[366071845,1750049452176,-1164.54,0.00016438,2]
[366071846,1750049452186,-490.0,0.00016438,2]
[366071847,1750049452195,-682.78,0.00016438,2]
[366071848,1750049452206,-233.324831,0.00016438,2]
[366071849,1750049452215,-1083.18,0.00016438,2]
[366071850,1750049452225,-491.93690777,0.00016438,2]
[366071851,1750049452235,-490.0,0.00016438,2]
[366071852,1750049452244,-1457.46,0.00016438,2]
[366071853,1750049452254,-503.49618835,0.00016438,2]
[366071854,1750049452263,-11198.93,0.00016438,2]
[366071855,1750049452273,-2991.43,0.00016438,2]
[366071856,1750049452283,-490.0,0.00016438,2]
[366071857,1750049452293,-6316.08,0.00016438,2]
[366071858,1750049452303,-527.28,0.00016438,2]
[366071859,1750049452312,-7065.41,0.00016438,2]
[366071860,1750049452321,-2064.36,0.00016438,2]
[366071861,1750049452331,-490.0,0.00016438,2]
[366071862,1750049452341,-918.28,0.00016438,2]
[366071863,1750049452351,-1888.91,0.00016438,2]
[366071864,1750049452360,-490.0,0.00016438,2]
[366071865,1750049452370,-2093.58,0.00016438,2]
[366071866,1750049452380,-2155.87,0.00016438,2]
[366071867,1750049452389,-490.0,0.00016438,2]
[366071868,1750049452400,-8055.26,0.00016438,2]
[366071869,1750049452411,-501.77667013,0.00016438,2]
[366071870,1750049452421,-490.0,0.00016438,2]
[366071871,1750049452430,-1848.887203,0.00016438,2]
[366071872,1750049452440,-550.48,0.00016438,2]
[366071873,1750049452450,-490.0,0.00016438,2]
[366071874,1750049452459,-490.0,0.00016438,2]
[366071875,1750049452469,-2008.97,0.00016438,2]
[366071876,1750049452479,-490.0,0.00016438,2]
[366071877,1750049452492,-4989.08,0.00016438,2]
[366071878,1750049452502,-959.04,0.00016438,2]
[366071879,1750049452512,-497.77326576,0.00016438,2]
[366071880,1750049452522,-729.48,0.00016438,2]
[366071881,1750049452531,-490.0,0.00016438,2]
[366071882,1750049452541,-1848.887203,0.00016438,2]
[366071883,1750049452550,-1148.48,0.00016438,2]
[366071884,1750049452561,-151.0,0.00016438,2]
[366071885,1750049452570,-495.10443526,0.00016438,2]
[366071886,1750049452580,-2432.99,0.00016438,2]
[366071887,1750049452590,-490.0,0.00016438,2]
[366071888,1750049452600,-496.24964688,0.00016438,2]
[366071889,1750049452609,-494.00947969,0.00016438,2]
[366071890,1750049452619,-899.42,0.00016438,2]
[366071891,1750049452628,-897.57,0.00016438,2]
[366071892,1750049452638,-548.63,0.00016438,2]
[366071893,1750049452647,-530.56,0.00016438,2]
[366071894,1750049452657,-490.0,0.00016438,2]
[366071895,1750049452666,-7856.3,0.00016438,2]
[366071896,1750049452676,-490.0,0.00016438,2]
[366071897,1750049452685,-500.0,0.00016438,2]
[366071898,1750049452694,-500.0,0.00016438,2]
[366071899,1750049452703,-500.0,0.00016438,2]
[366071900,1750049452713,-612.88,0.00016438,2]
[366071901,1750049452723,-500.0,0.00016438,2]
[366071902,1750049452733,-500.0,0.00016438,2]
[366071903,1750049452743,-1272.22,0.00016438,2]
[366071904,1750049452752,-498.28703104,0.00016438,2]
[366071905,1750049452762,-4169.57,0.00016438,2]
[366071906,1750049452771,-1415.65,0.00016438,2]
[366071907,1750049452780,-2512.28,0.00016438,2]
[366071908,1750049452789,-496.45715751,0.00016438,2]
[366071909,1750049452799,-1015.91,0.00016438,2]
[366071910,1750049452808,-152.502171,0.00016438,2]
[366071911,1750049452817,-1441.01,0.00016438,2]
[366071912,1750049452826,-7688.02,0.00016438,2]
[366071913,1750049452836,-490.0,0.00016438,2]
[366071914,1750049452845,-1435.64,0.00016438,2]
[366071915,1750049452854,-490.0,0.00016438,2]
[366071916,1750049452863,-496.37695765,0.00016438,2]
[366071917,1750049452873,-150.0,0.00016438,2]
[366071918,1750049452882,-496.23969559,0.00016438,2]
[366071919,1750049452892,-151.0,0.00016438,2]
[366071920,1750049452901,-3487.55,0.00016438,2]
[366071921,1750049452911,-490.0,0.00016438,2]
[366071922,1750049452920,-150.0,0.00016438,2]
[366071923,1750049452930,-1190.52,0.00016438,2]
[366071924,1750049452939,-529.57,0.00016438,2]
[366071925,1750049452950,-727.55,0.00016438,2]
[366071926,1750049452959,-150.20986126,0.00016438,2]
[366071927,1750049452971,-492.35178912,0.00016438,2]
[366071928,1750049452981,-1050.6,0.00016438,2]
[366071929,1750049452990,-1835.51,0.00016438,2]
[366071930,1750049453000,-3241.63,0.00016438,2]
[366071931,1750049453010,-150.0,0.00016438,2]
[366071932,1750049453019,-490.0,0.00016438,2]
[366071933,1750049453028,-490.0,0.00016438,2]
[366071934,1750049453038,-150.0,0.00016438,2]
[366071935,1750049453048,-712.65,0.00016438,2]
[366071936,1750049453057,-150.0,0.00016438,2]
[366071937,1750049453067,-1389.74,0.00016438,2]
[366071938,1750049453076,-493.30196648,0.00016438,2]
[366071939,1750049453086,-1517.44,0.00016438,2]
[366071940,1750049453096,-154.37777663,0.00016438,2]
[366071941,1750049453106,-889.43,0.00016438,2]